bitfinex/quotes_ETHUSD_20260129
["timestamp","ask_amount","ask_price","bid_price","bid_amount"]
[1769679882464,1.69832473,2950.0,2949.2,0.002]
[1769679882871,0.001,2949.8,2949.2,0.002]
[1769679889778,1.80265515,2949.8,2949.2,0.002]
[1769679894986,1.80265515,2949.8,2949.4,0.002]
[1769679895186,0.001,2949.6,2949.4,0.002]
[1769679917104,0.001,2949.6,2949.4,0.002]
[1769679922321,0.71,2950.0,2949.4,1.95338675]
[1769679927021,1.55746071,2950.0,2949.4,1.95338675]
[1769679927929,0.84746071,2950.0,2949.4,1.95338675]
[1769679928506,0.001,2950.1,2949.4,1.95338675]
[1769679932815,0.001,2950.1,2949.6,0.002]
[1769679933014,0.001,2949.9,2949.6,0.002]
[1769679935256,0.001,2949.9,2949.6,2.20909719]
[1769679935547,0.84740017,2950.2,2949.6,2.20909719]
[1769679936852,0.84738931,2950.3,2949.6,2.20909719]
[1769679937031,0.84736218,2950.4,2949.6,2.20909719]
[1769679937440,0.84736218,2950.4,2949.6,3.05666869]
[1769679937644,0.84736218,2950.4,2949.7,2.20709719]
[1769679944641,2.62839374,2950.5,2949.8,2.20709719]
[1769679945455,2.62839374,2950.5,2949.8,2.20909719]
[1769679945963,0.001,2950.2,2949.8,2.20909719]
[1769679951849,0.001,2950.2,2949.8,0.002]
[1769679956164,2.17078322,2950.2,2949.6,0.002]
[1769679956371,0.001,2950.2,2949.6,0.002]
[1769679956687,2.16778322,2950.1,2949.6,0.002]
[1769679956886,2.16778322,2950.1,2949.5,0.002]
[1769679959086,0.84745762,2950.0,2949.7,0.002]
[1769679959385,0.84845762,2950.0,2949.7,0.002]
[1769679964697,0.001,2950.0,2949.5,0.002]
[1769679965501,2.1921347,2950.0,2949.5,0.002]
[1769679965713,0.001,2950.0,2949.4,0.002]
[1769679972006,0.001,2949.8,2949.4,0.002]
[1769679972807,0.001,2949.8,2949.4,2.26699845]
[1769679973306,0.001,2949.8,2949.4,0.002]
[1769679979622,10.42150572,2949.7,2949.1,0.002]
[1769679979917,0.84757255,2949.6,2949.1,0.002]
[1769679983420,0.84757255,2949.6,2949.3,0.002]
[1769679984093,0.84757255,2949.6,2949.1,0.002]
[1769679985824,0.71,2949.5,2949.1,0.002]
[1769679987524,0.71,2949.5,2948.8,2.26699845]
[1769679987728,0.84763002,2949.4,2948.8,2.26699845]
[1769679993122,0.71,2949.3,2948.8,2.26699845]
[1769679994432,1.55765898,2949.3,2948.8,2.26699845]
[1769679995436,0.71,2949.3,2949.0,0.002]
[1769679996102,1.55766049,2949.3,2949.0,0.002]
[1769680007220,0.001,2949.1,2948.8,2.21899845]
[1769680018763,0.001,2948.9,2948.8,2.21899845]
[1769680020640,0.001,2948.9,2948.5,0.002]
[1769680030100,0.001,2948.9,2948.7,0.002]
[1769680038964,0.001,2949.1,2948.8,2.17693075]
[1769680040074,0.001,2949.1,2948.7,0.002]
[1769680040686,2.14498853,2949.1,2948.7,0.002]
[1769680041207,0.84774499,2949.0,2948.7,0.002]
[1769680041377,2.99173352,2949.0,2948.7,0.002]
[1769680041697,2.14398853,2948.9,2948.4,0.002]
[1769680041869,10.37845308,2948.9,2948.4,0.002]
[1769680042066,2.14398853,2948.9,2948.4,0.002]
[1769680042391,2.14398853,2948.9,2948.7,0.002]
[1769680042588,2.14498853,2948.9,2948.4,0.002]
[1769680042802,2.14498853,2948.9,2948.5,0.002]
[1769680043166,1.55780249,2948.8,2948.5,0.002]
[1769680043798,10.37845308,2948.6,2947.9,0.002]
[1769680044013,2.14398853,2948.6,2947.9,0.002]
[1769680045613,1.55788875,2948.5,2947.8,2.20538662]
[1769680045792,0.71,2948.4,2947.8,2.20538662]
[1769680045991,0.84788875,2948.5,2947.8,2.20538662]
[1769680046177,0.71,2948.4,2947.8,2.20538662]
[1769680048006,0.7076829,2948.4,2947.8,2.20538662]
[1769680049176,0.7076829,2948.4,2947.9,2.20338662]
[1769680051209,1.55560197,2948.4,2947.9,2.20338662]
[1769680051612,1.55560604,2948.4,2947.9,2.20338662]
[1769680052507,0.7076829,2948.4,2947.9,2.20338662]
[1769680053707,1.5556015,2948.4,2947.9,2.20338662]
[1769680054291,1.55560454,2948.4,2947.9,2.20338662]
[1769680054497,1.55560454,2948.4,2948.1,0.002]
[1769680056493,3.78337493,2948.4,2948.1,0.002]
[1769680056704,3.78337493,2948.4,2947.9,0.002]
[1769680057208,1.55560454,2948.4,2947.9,0.002]
[1769680058921,3.78337493,2948.4,2947.9,0.002]
[1769680059710,1.55560454,2948.4,2947.9,0.002]
[1769680062598,2.22777039,2948.3,2947.9,0.002]
[1769680063900,0.84797503,2948.2,2947.9,0.002]
[1769680066228,0.84797503,2948.2,2948.1,0.002]
[1769680066536,0.001,2948.2,2947.9,0.002]
[1769680068229,0.001,2948.2,2947.7,0.002]
[1769680072637,2.22877039,2948.2,2947.4,0.002]
[1769680074508,3.07577418,2948.1,2947.4,0.002]
[1769680075938,3.07577418,2948.1,2947.2,2.35840804]
[1769680078839,0.001,2948.0,2947.2,2.35840804]
[1769680085821,0.001,2948.0,2947.3,2.35640804]
[1769680086139,0.711,2948.1,2947.3,2.35640804]
[1769680086736,0.001,2948.2,2947.3,2.35640804]
[1769680086929,0.711,2948.1,2947.3,2.35640804]
[1769680088051,0.711,2948.1,2947.2,0.002]
[1769680088052,0.711,2948.1,2947.5,2.35640804]
[1769680088258,1.55999634,2948.2,2947.5,2.35640804]
[1769680089236,0.001,2948.2,2947.5,2.35640804]
[1769680089867,0.001,2948.2,2947.5,0.84816068]
[1769680090063,0.001,2948.2,2947.6,2.35640804]
[1769680090467,0.001,2948.0,2947.6,2.35640804]
[1769680091939,0.001,2948.0,2947.8,2.35640804]
[1769680101274,0.001,2948.0,2947.6,3.20455556]
[1769680101784,0.001,2948.0,2947.6,0.84814752]
[1769680101986,0.001,2948.0,2947.6,3.20455556]
[1769680102482,0.001,2948.0,2947.6,0.84814752]
[1769680102688,0.001,2948.0,2947.7,2.35640804]
[1769680113780,0.001,2948.0,2947.9,0.002]
[1769680130726,0.001,2948.2,2947.9,0.002]
[1769680138345,0.001,2948.0,2947.9,0.002]
[1769680145574,0.001,2948.0,2947.0,0.002]
[1769680145575,2.34209699,2948.0,2946.8,0.002]
[1769680145855,0.175,2946.7,2946.4,0.002]
[1769680146722,0.175,2946.7,2946.4,0.85049196]
[1769680148154,0.175,2946.7,2946.4,3.18295209]
[1769680151233,0.711,2947.1,2946.4,3.18295209]
[1769680151855,0.711,2947.1,2946.4,3.00795209]
[1769680153252,3.90038976,2947.1,2946.2,2.33246013]
[1769680153858,3.05209699,2947.1,2946.3,3.1809804]
[1769680154451,3.90039231,2947.1,2946.3,3.1809804]
[1769680155588,3.90039231,2947.1,2946.3,2.33246013]
[1769680155756,3.90039231,2947.1,2946.3,3.18097474]
[1769680156387,3.90039231,2947.1,2946.3,2.33246013]
[1769680156763,2.34109699,2947.0,2946.2,0.84853295]
[1769680156963,2.34109699,2947.0,2946.2,3.18099308]
[1769680157164,1.55929532,2947.1,2946.2,3.18099308]
[1769680157366,2.34109699,2947.0,2946.1,3.18101842]
[1769680157567,2.34109699,2947.0,2946.2,0.84854404]
[1769680157780,3.18944061,2947.0,2946.2,0.84854404]
[1769680159757,2.34109699,2946.9,2946.1,2.33246013]
[1769680160587,2.34109699,2946.9,2946.0,0.85059407]
[1769680160789,2.34109699,2946.9,2946.0,3.1830542]
[1769680161587,2.34109699,2946.9,2946.5,0.002]
[1769680161987,0.8483779,2946.8,2946.5,0.002]
[1769680165501,0.8483779,2946.8,2946.5,0.001]
[1769680166900,3.23802069,2946.8,2946.5,0.001]
[1769680167593,0.8483779,2946.8,2946.5,0.001]
[1769680168604,0.8483779,2946.8,2946.5,2.01e-06]
[1769680168900,3.23802069,2946.8,2946.5,2.01e-06]
[1769680169094,0.8483779,2946.8,2946.5,2.01e-06]
[1769680170095,0.84834911,2946.9,2946.5,2.01e-06]
[1769680173577,0.001,2946.7,2946.5,2.01e-06]
[1769680177824,0.712,2946.7,2946.5,2.01e-06]
[1769680180400,0.84941524,2946.7,2946.5,2.01e-06]
[1769680181092,0.001,2946.7,2946.5,2.01e-06]
[1769680193032,0.001,2946.7,2945.8,2.52913039]
[1769680194041,0.711,2946.6,2945.8,2.52913039]
[1769680194836,0.84846427,2946.5,2945.8,2.52913039]
[1769680196609,1.55945675,2946.6,2945.9,2.55856947]
[1769680196810,1.55945675,2946.6,2946.0,2.56056947]
[1769680197011,0.001,2946.5,2946.0,2.56056947]
[1769680212778,0.001,2946.5,2946.0,0.002]
[1769680217990,0.001,2946.5,2946.0,2.56056947]
[1769680219860,0.001,2946.5,2946.0,0.002]
[1769680220598,0.001,2946.3,2946.0,0.002]
[1769680228503,0.001,2946.3,2945.8,4.01e-06]
[1769680228704,0.001,2946.3,2945.8,2.78910011]
[1769680230694,0.001,2946.3,2945.8,3.63776567]
[1769680232275,0.001,2946.3,2945.9,2.69319373]
[1769680237111,0.001,2946.5,2946.0,2.69319373]
[1769680238008,0.001,2946.7,2946.1,2.7271369]
[1769680238214,0.001,2946.7,2946.1,2.69319373]
[1769680243514,0.001,2946.7,2946.1,2.69519373]
[1769680243716,0.001,2946.5,2946.1,2.69519373]
[1769680252016,0.001,2946.5,2946.1,0.002]
[1769680255822,0.001,2946.5,2946.3,0.002]
[1769680265032,0.84834911,2946.9,2946.3,2.7062065]
[1769680265333,6.4324,2947.6,2946.3,2.7062065]
[1769680265334,1.55920519,2947.4,2946.3,2.7062065]
[1769680265509,0.84820519,2947.4,2946.3,2.7062065]
[1769680266216,0.84814764,2947.6,2946.5,2.7042065]
[1769680267504,0.001,2947.2,2946.5,2.7042065]
[1769680268900,0.001,2947.2,2946.6,2.7042065]
[1769680271144,0.001,2947.2,2946.7,3.55261319]
[1769680271602,0.001,2947.2,2946.7,2.7042065]
[1769680274643,0.001,2947.2,2946.8,2.7042065]
[1769680281533,0.001,2947.2,2946.6,3.55264166]
[1769680288755,0.001,2947.2,2946.7,2.87935354]
[1769680288938,0.001,2947.2,2946.7,2.9132898]
[1769680290233,0.001,2947.8,2946.8,2.87935354]
[1769680290635,0.001,2947.8,2947.0,2.73579497]
[1769680294064,0.001,2947.8,2947.1,2.73579497]
[1769680296746,0.001,2947.8,2947.1,0.84828515]
[1769680296941,0.001,2947.8,2946.9,3.39331417]
[1769680297152,2.75703929,2947.8,2947.0,0.84830292]
[1769680298970,2.75603929,2947.7,2946.7,3.61813792]
[1769680299299,2.75603929,2947.7,2946.8,2.73579497]
[1769680302756,3.60416476,2947.7,2946.9,0.84834911]
[1769680302956,2.75603929,2947.6,2946.9,0.84834911]
[1769680303542,2.75603929,2947.6,2947.0,0.002]
[1769680303743,2.75703929,2947.6,2947.0,0.002]
[1769680305478,0.001,2947.6,2947.0,0.002]
[1769680307774,2.75603929,2947.5,2946.8,0.002]
[1769680307952,0.001,2947.6,2946.8,0.002]
[1769680308269,2.75703929,2947.6,2946.8,0.85037011]
[1769680308476,2.75703929,2947.6,2946.8,3.58616508]
[1769680309647,0.001,2947.6,2946.9,2.73579497]
[1769680309981,0.001,2947.6,2946.9,3.58411561]
[1769680314595,0.001,2947.6,2947.0,2.73579497]
[1769680315906,2.81689838,2947.6,2946.8,2.82065031]
[1769680316080,2.81689838,2947.6,2946.8,0.002]
[1769680316471,0.001,2947.4,2946.8,0.002]
[1769680320603,2.81589838,2947.3,2946.5,0.002]
[1769680321202,0.84826275,2947.2,2946.5,0.002]
[1769680321705,0.84826275,2947.2,2946.5,2.82065031]
[1769680323410,2.81689838,2947.4,2946.5,2.82065031]
[1769680323800,0.001,2947.4,2946.5,2.82065031]
[1769680325296,2.81689838,2947.4,2946.5,2.82065031]
[1769680326308,0.001,2947.4,2946.5,2.82065031]
[1769680327408,0.001,2947.4,2946.6,2.81865031]
[1769680327606,0.711,2947.3,2946.6,2.81865031]
[1769680327908,0.711,2947.3,2946.5,0.88440091]
[1769680327909,0.712,2947.4,2946.7,2.85258657]
[1769680328104,0.712,2947.4,2946.7,2.82065031]
[1769680329506,0.84823397,2947.3,2946.7,2.82065031]
[1769680331612,0.712,2947.4,2946.7,2.82065031]
[1769680331909,0.001,2947.4,2946.7,2.82065031]
[1769680332084,0.712,2947.4,2946.7,2.82065031]
[1769680334290,0.001,2947.4,2946.7,2.82065031]
[1769680335410,0.001,2947.4,2946.8,2.81865031]
[1769680340612,0.001,2947.2,2946.8,2.81865031]
[1769680348838,0.001,2947.2,2946.8,3.66702775]
[1769680349041,0.001,2947.2,2946.9,2.8147424]
[1769680352144,0.001,2947.0,2946.9,2.8147424]
[1769680357549,0.001,2947.0,2946.7,2.80717723]
[1769680359366,0.001,2947.0,2946.7,0.002]
[1769680364327,0.001,2946.8,2946.7,0.002]
[1769680375772,0.001,2946.8,2946.7,0.002]
[1769680381374,0.001,2947.4,2946.8,2.61706493]
[1769680381553,0.001,2947.6,2946.7,0.002]
[1769680381554,3.7067871,2947.6,2946.7,0.03593626]
[1769680381755,2.8586348,2947.6,2946.7,0.002]
[1769680382268,2.8576348,2947.5,2946.7,0.002]
[1769680382469,3.70581624,2947.5,2946.7,0.002]
[1769680382669,2.8576348,2947.5,2946.7,0.002]
[1769680383048,2.8576348,2947.4,2946.7,0.002]
[1769680385572,0.84817988,2947.5,2946.7,2.61906493]
[1769680385743,2.8576348,2947.5,2946.7,0.002]
[1769680387656,0.001,2947.4,2946.7,0.002]
[1769680391549,2.8586348,2947.4,2946.7,0.002]
[1769680395088,0.001,2947.4,2946.7,2.61906493]
[1769680396693,0.001,2947.8,2947.1,2.61706493]
[1769680396992,0.001,2948.0,2947.3,0.84823397]
[1769680397207,0.001,2948.0,2947.4,2.61706493]
[1769680398199,0.001,2948.0,2947.3,0.84823397]
[1769680398200,2.8586348,2948.0,2947.3,0.84823397]
[1769680399270,2.8586348,2948.0,2947.0,2.61706493]
[1769680399271,2.8576348,2947.9,2947.0,0.84830406]
[1769680399575,9.09365301,2948.0,2947.0,0.84830406]
[1769680399576,2.8576348,2947.7,2947.0,0.84831888]
[1769680399991,2.8576348,2947.7,2946.9,0.002]
[1769680400297,2.8576348,2947.7,2946.9,0.85033176]
[1769680400596,2.8576348,2947.7,2946.9,0.002]
[1769680400779,2.8576348,2947.6,2946.9,0.002]
[1769680401380,3.70581122,2947.5,2946.9,0.002]
[1769680401565,2.8576348,2947.4,2946.9,0.002]
[1769680403468,0.84823397,2947.3,2946.9,0.002]
[1769680404876,2.8576348,2947.2,2946.7,0.002]
[1769680405187,2.8576348,2947.2,2946.6,0.002]
[1769680405970,2.64788555,2947.1,2946.6,0.002]
[1769680406587,2.64788555,2947.1,2946.3,0.002]
[1769680406788,2.64788555,2946.9,2946.3,0.002]
[1769680409705,3.49623724,2946.9,2946.3,0.002]
[1769680412177,3.49623724,2946.9,2946.5,0.002]
[1769680412371,0.711,2947.1,2946.5,0.002]
[1769680412909,3.32871445,2947.1,2946.5,0.002]
[1769680413889,2.61771445,2947.5,2946.5,2.77087314]
[1769680414094,2.61771445,2947.6,2946.7,2.76887314]
[1769680414287,0.84817642,2947.5,2946.7,3.61726587]
[1769680414586,1.55917642,2947.5,2946.7,2.76887314]
[1769680414788,8.24459212,2947.4,2946.5,0.002]
[1769680414993,2.61771445,2947.3,2946.5,0.002]
[1769680416814,2.61771445,2947.1,2946.5,0.002]
[1769680419004,2.61771445,2946.9,2946.5,0.002]
[1769680419582,0.84832032,2947.0,2946.5,0.002]
[1769680424690,0.84930831,2947.1,2946.5,0.002]
[1769680424881,3.46702276,2947.1,2946.5,0.002]
[1769680425808,2.61771445,2947.0,2946.5,0.002]
[1769680425989,3.32871445,2946.9,2946.5,0.002]
[1769680427889,4.1770819,2946.9,2946.5,0.002]
[1769680432108,3.4660819,2946.9,2946.5,0.002]
[1769680432405,4.1770819,2946.9,2946.5,0.002]
[1769680435391,0.001,2946.7,2946.5,0.002]
[1769680435594,0.001,2946.7,2946.3,0.002]
[1769680438622,0.001,2946.7,2946.1,0.002]
[1769680438623,2.58315473,2946.7,2946.1,0.002]
[1769680438915,2.58215473,2946.1,2944.9,0.002]
[1769680439119,2.58215473,2945.9,2945.0,0.84889222]
[1769680439482,0.711,2945.8,2945.1,0.85086198]
[1769680439815,0.711,2945.8,2945.2,2.53454735]
[1769680440013,0.84857164,2946.2,2945.3,2.53654735]
[1769680440182,1.55957164,2946.2,2945.3,2.53654735]
[1769680440386,2.58215473,2946.4,2945.3,2.53654735]
[1769680440592,3.29315473,2946.5,2945.3,2.53654735]
[1769680440794,2.58215473,2946.4,2945.3,2.53654735]
[1769680442216,2.58215473,2946.4,2945.4,3.3833285]
[1769680442516,3.43065074,2946.4,2945.5,2.53454735]
[1769680444319,1.55952301,2946.3,2945.5,3.38328219]
[1769680444922,0.711,2946.3,2945.6,2.53454735]
[1769680445908,1.55952999,2946.3,2945.6,2.53454735]
[1769680446215,4.14168472,2946.3,2945.4,2.53454735]
[1769680447115,4.14168472,2946.3,2945.8,0.002]
[1769680448192,2.58215473,2946.2,2945.5,0.002]
[1769680448491,0.84857947,2946.1,2945.5,0.002]
[1769680448909,3.4307342,2946.1,2945.5,0.002]
[1769680449122,0.711,2946.0,2945.5,0.002]
[1769680449495,3.4307342,2946.1,2945.5,0.002]
[1769680449695,0.711,2946.0,2945.5,0.002]
[1769680450122,1.55962018,2946.0,2945.5,0.002]
[1769680450486,0.84862018,2946.0,2945.5,0.002]
[1769680450692,1.55962018,2946.0,2945.5,0.002]
[1769680456225,1.55962018,2946.0,2945.5,2.53654735]
[1769680456405,1.55962018,2946.0,2945.5,0.002]
[1769680457425,0.711,2946.0,2945.5,0.002]
[1769680458419,0.711,2946.0,2945.5,2.53654735]
[1769680459122,0.711,2946.0,2945.5,0.002]
[1769680460121,1.55961742,2946.0,2945.5,0.002]
[1769680460294,0.84861742,2946.0,2945.5,0.002]
[1769680464109,3.43077215,2946.0,2945.3,0.002]
[1769680464455,3.43077215,2946.0,2945.3,0.004]
[1769680464456,2.58215473,2945.9,2945.3,0.004]
[1769680464635,2.58215473,2945.9,2945.0,1.52081554]
[1769680464936,0.84866589,2945.8,2945.0,1.52081554]
[1769680465534,2.67657273,2945.7,2944.9,0.002]
[1769680466602,2.67657273,2945.4,2944.7,0.002]
[1769680467134,0.84880996,2945.3,2944.7,0.002]
[1769680467638,3.52537371,2945.4,2944.7,0.002]
[1769680467839,2.67657273,2945.3,2944.7,0.002]
[1769680468424,2.67657273,2945.2,2944.7,0.002]
[1769680468826,2.67657273,2945.2,2944.4,0.002]
[1769680469025,0.84886761,2945.1,2944.4,0.002]
[1769680469610,0.84886761,2945.1,2944.4,2.54683924]
[1769680470541,0.84886761,2945.1,2944.9,0.002]
[1769680470722,0.84886761,2945.1,2944.4,2.54683924]
[1769680471844,0.84886761,2945.1,2944.4,0.002]
[1769680473928,3.39461525,2945.9,2944.4,0.002]
[1769680473929,3.39466358,2946.2,2944.5,2.62573787]
[1769680474223,2.67516597,2945.8,2944.5,2.62573787]
[1769680474950,3.52386067,2945.7,2944.6,2.62573787]
[1769680477349,3.52386067,2945.7,2944.7,2.62573787]
[1769680479124,0.8486947,2945.7,2944.7,2.62573787]
[1769680479324,0.84875233,2945.5,2944.5,0.84902697]
[1769680479524,0.84875233,2945.5,2944.6,2.62573787]
[1769680481628,3.5239183,2945.5,2944.6,2.62573787]
[1769680482453,0.84975233,2945.5,2944.6,2.62573787]
[1769680485959,3.5249183,2945.5,2944.6,2.62573787]
[1769680488161,2.67516597,2945.4,2944.4,0.002]
[1769680488458,2.67516597,2945.4,2944.4,2.62773787]
[1769680488459,2.67516597,2945.3,2944.4,2.62773787]
[1769680489242,2.67516597,2945.3,2944.4,0.002]
[1769680489456,0.711,2945.2,2944.4,2.62773787]
[1769680490354,0.84886761,2945.1,2944.4,2.62773787]
[1769680492685,3.39547044,2945.2,2944.4,2.62773787]
[1769680493945,1.55978115,2945.4,2944.5,2.62573787]
[1769680494145,1.55978115,2945.4,2944.7,2.62573787]
[1769680495932,0.84878115,2945.4,2944.7,2.62573787]
[1769680496937,0.001,2945.5,2944.7,2.62573787]
[1769680505785,0.001,2945.3,2944.7,2.62573787]
[1769680511073,0.001,2945.3,2944.6,0.85100969]
[1769680511570,0.001,2945.3,2944.6,3.52805634]
[1769680511754,0.001,2945.3,2944.7,2.67704665]
[1769680511958,0.001,2945.3,2944.7,3.52601683]
[1769680512143,0.001,2945.3,2944.8,2.67704665]
[1769680513675,0.001,2945.3,2944.9,2.67704665]
[1769680514050,0.001,2945.3,2944.7,2.67704665]
[1769680514458,0.001,2945.3,2944.8,2.67704665]
[1769680514662,0.001,2945.3,2944.6,0.85099075]
[1769680514977,2.77483572,2945.3,2944.6,0.85101089]
[1769680515188,2.77483572,2945.3,2944.6,0.002]
[1769680515483,2.77383572,2945.1,2944.0,2.67704665]
[1769680516999,2.77383572,2945.1,2944.1,2.67704665]
[1769680517478,0.84889643,2945.0,2944.2,2.67704665]
[1769680517888,0.84987827,2945.1,2944.2,2.67704665]
[1769680518052,0.001,2945.1,2944.4,2.67704665]
[1769680518861,0.84986853,2945.1,2944.4,2.67704665]
[1769680519361,0.001,2945.1,2944.4,2.67704665]
[1769680519551,0.001,2945.1,2944.5,2.71100827]
[1769680519751,0.001,2945.1,2944.5,2.67704665]
[1769680520363,0.001,2945.1,2944.4,0.8490559]
[1769680520587,0.001,2945.1,2944.4,3.52610255]
[1769680521554,0.001,2945.1,2944.4,0.8490559]
[1769680522062,0.001,2945.1,2944.4,3.52610255]
[1769680522254,0.001,2945.1,2944.5,2.67704665]
[1769680523681,0.001,2945.1,2944.5,3.52608357]
[1769680525389,0.001,2945.1,2944.6,2.71672313]
[1769680527659,0.001,2945.1,2944.6,3.56572766]
[1769680528059,0.001,2945.1,2944.6,2.71672313]
[1769680529191,0.001,2944.9,2944.6,2.71672313]
[1769680530061,0.001,2944.9,2944.5,0.8490187]
[1769680530266,0.001,2944.9,2944.4,0.84905204]
[1769680531064,0.001,2944.9,2944.6,2.62434071]
[1769680531674,0.001,2944.9,2944.5,0.84903892]
[1769680533191,0.001,2944.9,2944.5,3.47337963]
[1769680534467,0.001,2944.9,2944.6,2.62434071]
[1769680537402,0.001,2944.9,2944.6,3.47334783]
[1769680537699,0.001,2944.9,2944.6,2.62434071]
[1769680540303,0.001,2944.9,2944.6,3.47334972]
[1769680540607,0.001,2944.7,2944.6,3.47334972]
[1769680541296,0.001,2944.7,2944.2,6.02076701]
[1769680541495,0.001,2944.7,2944.4,0.84904996]
[1769680541900,0.001,2944.7,2944.3,3.47341792]
[1769680542074,0.001,2944.7,2944.4,0.84905827]
[1769680542397,0.001,2944.7,2944.4,3.47339898]
[1769680542702,0.001,2944.7,2944.3,0.84908812]
[1769680543400,0.001,2944.7,2944.3,0.84907635]
[1769680543605,0.001,2944.7,2944.4,0.84905303]
[1769680544175,0.001,2944.7,2944.4,3.47339374]
[1769680548807,0.001,2944.7,2944.4,0.84905303]
[1769680553114,0.001,2944.7,2944.4,3.47339374]
[1769680553998,0.001,2944.7,2944.4,0.84905303]
[1769680561116,0.001,2944.7,2944.4,3.40870486]
[1769680561435,0.001,2945.1,2944.7,2.55965183]
[1769680562507,0.001,2945.5,2944.7,2.55965183]
[1769680562918,2.5617076,2945.5,2944.6,0.84901175]
[1769680563139,2.5617076,2946.1,2944.9,2.55965183]
[1769680563306,2.5607076,2946.0,2945.1,2.55965183]
[1769680563989,0.001,2946.1,2945.1,2.55965183]
[1769680565323,0.84957947,2946.1,2945.2,3.40849061]
[1769680567501,2.5617076,2946.1,2945.2,3.40849061]
[1769680567727,2.5617076,2946.1,2945.3,2.55965183]
[1769680568227,0.001,2946.1,2945.3,2.55965183]
[1769680569703,0.001,2946.1,2945.4,0.84878115]
[1769680569907,2.5617076,2946.1,2945.3,0.84878918]
[1769680571322,2.5617076,2946.1,2945.2,0.84881864]
[1769680571538,2.5607076,2945.8,2944.8,0.84895408]
[1769680572532,2.5607076,2945.7,2944.8,0.84895408]
[1769680573624,11.65385829,2946.1,2944.5,2.55965183]
[1769680573625,2.5607076,2945.5,2944.6,0.84901175]
[1769680575028,2.5607076,2945.5,2945.0,0.002]
[1769680577852,2.5607076,2945.4,2945.0,0.002]
[1769680578056,2.5607076,2945.4,2944.8,0.002]
[1769680585356,0.84875529,2945.5,2944.8,0.002]
[1769680586748,0.84874592,2945.6,2944.8,2.60645983]
[1769680586947,1.55974592,2945.6,2944.8,2.60645983]
[1769680587266,1.55974592,2945.6,2944.9,3.45338509]
[1769680587467,1.55974592,2945.6,2945.0,0.002]
[1769680587843,0.001,2945.2,2945.0,0.002]
[1769680604782,2.58885265,2945.2,2944.8,0.002]
[1769680607661,0.001,2945.2,2944.8,0.002]
[1769680611998,0.001,2945.2,2945.0,0.002]
[1769680614701,0.001,2945.2,2945.0,0.001]
[1769680616503,0.001,2945.2,2945.0,1000.001]
[1769680616673,0.001,2945.2,2945.0,999.998]
[1769680616873,0.001,2945.2,2945.0,999.993]
[1769680617074,0.001,2945.2,2945.0,999.985]
[1769680617275,0.001,2945.2,2945.0,999.97103209]
[1769680617918,0.001,2945.2,2945.0,999.96703209]
[1769680618113,0.001,2945.2,2945.0,999.95903209]
[1769680618297,0.001,2945.2,2945.0,999.95103209]
[1769680618602,0.001,2945.2,2945.0,999.93803209]
[1769680618778,0.001,2945.2,2945.0,999.93003209]
[1769680619110,0.001,2945.2,2945.0,999.91803209]
[1769680619404,0.001,2945.2,2945.0,999.90603209]
[1769680619595,0.001,2945.2,2945.0,999.89803209]
[1769680619780,0.001,2945.2,2945.0,999.89003209]
[1769680620104,0.001,2945.2,2945.0,999.87803209]
[1769680620308,0.001,2945.2,2945.0,999.87003209]
[1769680620484,0.001,2945.2,2945.0,999.86203209]
[1769680620685,0.001,2945.2,2945.0,999.85403209]
[1769680620904,0.001,2945.2,2945.0,999.84603209]
[1769680621085,0.001,2945.2,2945.0,999.83803209]
[1769680621291,0.001,2945.2,2945.0,999.83003209]
[1769680621499,0.001,2945.2,2945.0,999.82203209]
[1769680621707,0.001,2945.2,2945.0,999.81503209]
[1769680621884,0.001,2945.2,2945.0,999.80603209]
[1769680622093,0.001,2945.2,2945.0,999.79803209]
[1769680622307,0.001,2945.2,2945.0,999.79003209]
[1769680622605,0.001,2945.2,2945.0,999.77803209]
[1769680622796,0.001,2945.2,2945.0,999.77003209]
[1769680623000,0.001,2945.2,2945.0,999.76203209]
[1769680623189,0.001,2945.2,2945.0,999.75403209]
[1769680623385,0.001,2945.2,2945.0,999.75003209]
[1769680623590,0.001,2945.2,2945.0,999.73027377]
[1769680624314,0.001,2945.2,2945.0,999.73227377]
[1769680629016,2.6612306,2945.1,2945.0,981.85487639]
[1769680629216,2.6612306,2945.1,2945.0,867.58056521]
[1769680629522,2.6612306,2945.1,2945.0,857.08907828]
[1769680629748,3.51009821,2945.1,2945.0,853.67822866]
[1769680630046,3.51009821,2945.1,2945.0,816.59877201]
[1769680630247,3.51009821,2945.1,2945.0,772.21184087]
[1769680630547,3.51009821,2945.1,2945.0,763.79286015]
[1769680630751,3.51009821,2945.1,2945.0,762.76493073]
[1769680631046,3.51009821,2945.1,2945.0,747.77966914]
[1769680631227,2.6612306,2945.1,2945.0,689.0053285]
[1769680631545,8.25593272,2945.2,2945.0,679.54799097]
[1769680631750,8.25593272,2945.2,2945.0,671.64937827]
[1769680631952,8.25593272,2945.2,2945.0,662.40848082]
[1769680632149,8.25593272,2945.2,2945.0,662.39948082]
[1769680632447,8.25593272,2945.2,2945.0,660.29766731]
[1769680632647,10.91716332,2945.2,2945.0,659.09116777]
[1769680632822,10.91716332,2945.2,2945.0,659.08316777]
[1769680633023,2.6612306,2945.1,2945.0,649.29832394]
[1769680633364,2.6612306,2945.1,2945.0,631.5740054]
[1769680633554,2.6612306,2945.1,2945.0,630.54577769]
[1769680633734,2.6612306,2945.1,2945.0,630.53777769]
[1769680634052,2.6612306,2945.1,2945.0,620.74893386]
[1769680634250,2.6612306,2945.1,2945.0,619.72070615]
[1769680634451,2.6612306,2945.1,2945.0,619.71170615]
[1769680634632,2.6612306,2945.1,2945.0,618.68347844]
[1769680634950,2.6612306,2945.1,2945.0,609.91486232]
[1769680635248,2.6612306,2945.1,2945.0,608.88363461]